fUSD/lending_fUSD_20241202
["ID","MTS","AMOUNT","RATE_DAILY","PERIOD"]
[343984386,1733169559327,-3373.11,0.00025547,120]
[343984387,1733169559377,-587.12,0.00025547,120]
[343984388,1733169559427,-658.13,0.00025547,120]
[343984389,1733169559473,-500.0,0.00025547,120]
[343984390,1733169559519,-797.38,0.00025547,120]
[343984391,1733169559568,-518.27,0.00025547,120]
[343984392,1733169559615,-651.08,0.00025547,120]
[343984393,1733169559662,-2812.6,0.00025547,120]
[343984394,1733169559707,-7147.22,0.00025547,120]
[343984395,1733169559750,-2921.9,0.00025547,120]
[343984396,1733169559794,-1551.24,0.00025547,120]
[343984397,1733169559836,-500.0,0.00025547,120]
[343984398,1733169559880,-500.0,0.00025547,120]
[343984399,1733169559925,-622.04,0.00025547,120]
[343984400,1733169559968,-1568.244749,0.00025547,120]
[343984401,1733169560011,-570.25,0.00025547,120]
[343984402,1733169560054,-1134.58,0.00025547,120]
[343984403,1733169560099,-8995.35,0.00025547,120]
[343984404,1733169560146,-2673.72,0.00025547,120]
[343984405,1733169560189,-500.0,0.00025547,120]
[343984406,1733169560232,-1345.84,0.00025547,120]
[343984407,1733169560275,-500.0,0.00025547,120]
[343984408,1733169560317,-723.17,0.00025547,120]
[343984409,1733169560359,-500.0,0.00025547,120]
[343984410,1733169560403,-1392.8,0.00025547,120]
[343984411,1733169560447,-703.37,0.00025547,120]
[343984412,1733169560490,-500.0,0.00025547,120]
[343984413,1733169560537,-2108.47,0.00025547,120]
[343984414,1733169560596,-500.0,0.00025547,120]
[343984415,1733169560644,-755.13,0.00025547,120]
[343984416,1733169560688,-500.0,0.00025547,120]
[343984417,1733169560732,-1785.16,0.00025547,120]
[343984418,1733169560775,-672.83,0.00025547,120]
[343984419,1733169560819,-935.66,0.00025547,120]
[343984420,1733169560861,-3035.15,0.00025547,120]
[343984421,1733169560904,-632.7,0.00025547,120]
[343984422,1733169560947,-500.0,0.00025547,120]
[343984423,1733169560989,-2072.12,0.00025547,120]
[343984424,1733169561032,-5565.53,0.00025547,120]
[343984425,1733169561074,-2151.79,0.00025547,120]
[343984426,1733169561121,-671.1,0.00025547,120]
[343984427,1733169561163,-1217.44,0.00025547,60]
[343984428,1733169561204,-4694.36,0.00025547,120]
[343984429,1733169561246,-2095.21,0.00025547,120]
[343984430,1733169561288,-2095.96,0.00025547,120]
[343984431,1733169561330,-500.0,0.00025547,120]
[343984432,1733169561373,-2737.11,0.00025547,120]
[343984433,1733169561419,-500.0,0.00025547,120]
[343984434,1733169561464,-2399.96,0.00025547,120]
[343984435,1733169561509,-1205.02,0.00025547,120]
[343984436,1733169561556,-731.09,0.00025547,120]
[343984437,1733169561600,-517.92,0.00025547,120]
[343984438,1733169561647,-500.0,0.00025547,120]
[343984439,1733169561691,-500.0,0.00025547,120]
[343984440,1733169561735,-957.59,0.00025547,120]
[343984441,1733169561778,-500.0,0.00025547,120]
[343984442,1733169561821,-500.0,0.00025547,120]
[343984443,1733169561865,-964.02,0.00025547,120]
[343984444,1733169561909,-5642.52,0.00025547,120]
[343984445,1733169561953,-1599.85,0.00025547,120]
[343984446,1733169561996,-1155.0,0.00025547,120]
[343984447,1733169562249,-500.0,0.00025547,120]
[343984448,1733169562313,-12639.89,0.00025547,120]
[343984449,1733169562356,-3145.91,0.00025547,120]
[343984450,1733169562400,-4747.76,0.00025547,120]
[343984451,1733169562444,-2445.76,0.00025547,120]
[343984452,1733169562492,-966.75,0.00025547,120]
[343984453,1733169562539,-976.95,0.00025547,120]
[343984454,1733169562585,-500.0,0.00025547,120]
[343984455,1733169562629,-500.0,0.00025547,120]
[343984456,1733169562673,-500.0,0.00025547,120]
[343984457,1733169562717,-3585.22,0.00025547,120]
[343984458,1733169562761,-3095.03,0.00025547,120]
[343984459,1733169562803,-1566.82,0.00025547,120]
[343984460,1733169562847,-8533.54,0.00025547,120]
[343984461,1733169562892,-500.0,0.00025547,120]
[343984462,1733169562937,-2038.8,0.00025547,120]
[343984463,1733169562982,-3060.79,0.00025547,120]
[343984464,1733169563025,-3532.86,0.00025547,120]
[343984465,1733169563071,-2087.33,0.00025547,120]
[343984466,1733169563115,-21068.21,0.00025547,120]
[343984467,1733169563158,-3138.93,0.00025547,120]
[343984468,1733169563202,-4394.15,0.00025547,120]
[343984469,1733169563243,-500.0,0.00025547,120]
[343984470,1733169563285,-1858.53,0.00025547,120]
[343984471,1733169563326,-1419.7,0.00025547,120]
[343984472,1733169563369,-500.0,0.00025547,120]
[343984473,1733169563410,-1050.27,0.00025547,120]
[343984474,1733169563454,-704.36,0.00025547,120]
[343984475,1733169563497,-5863.27,0.00025547,120]
[343984476,1733169563540,-500.0,0.00025547,120]
[343984477,1733169563585,-1155.5,0.00025547,120]
[343984478,1733169563629,-1383.07,0.00025547,120]
[343984479,1733169563676,-2485.86,0.00025547,120]
[343984480,1733169563721,-3307.46,0.00025547,120]
[343984481,1733169563768,-500.0,0.00025547,120]
[343984482,1733169563812,-619.4,0.00025547,120]
[343984483,1733169563852,-9569.74,0.00025547,120]
[343984484,1733169563895,-2954.23,0.00025547,120]
[343984485,1733169563936,-500.0,0.00025547,120]
[343984486,1733169563976,-500.0,0.00025547,120]
[343984487,1733169564015,-3344.79,0.00025547,120]
[343984488,1733169564056,-1622.42,0.00025547,120]
[343984489,1733169564096,-500.0,0.00025547,120]
[343984490,1733169564136,-5312.46,0.00025547,120]
[343984491,1733169564178,-3039.49,0.00025547,120]
[343984492,1733169564218,-1433.94,0.00025547,120]
[343984493,1733169564261,-1486.96,0.00025547,120]
[343984494,1733169564306,-9703.4,0.00025547,120]
[343984495,1733169564360,-500.0,0.00025547,120]
[343984496,1733169564409,-5702.56,0.00025547,120]
[343984497,1733169564460,-500.0,0.00025547,120]
[343984498,1733169564511,-553.01,0.00025547,120]
[343984499,1733169564554,-500.0,0.00025547,120]
[343984500,1733169564597,-6176.14,0.00025547,120]
[343984501,1733169564637,-617.67,0.00025547,120]
[343984502,1733169564682,-2712.05,0.00025547,120]
[343984503,1733169564724,-500.0,0.00025547,120]
[343984504,1733169564766,-4667.69,0.00025547,120]
[343984505,1733169564808,-500.0,0.00025547,120]
[343984506,1733169564850,-909.9,0.00025547,120]
[343984507,1733169564889,-2769.56,0.00025547,120]
[343984508,1733169564932,-2398.74,0.00025547,120]
[343984509,1733169564972,-1527.45,0.00025547,120]
[343984510,1733169565012,-500.0,0.00025547,120]
[343984511,1733169565051,-500.0,0.00025547,120]
[343984512,1733169565089,-500.0,0.00025547,120]
[343984513,1733169565128,-2607.43,0.00025547,120]
[343984514,1733169565169,-1429.2,0.00025547,120]
[343984515,1733169565211,-500.0,0.00025547,120]
[343984516,1733169565254,-500.0,0.00025547,120]
[343984517,1733169565298,-500.0,0.00025547,120]
[343984518,1733169565342,-1289.36,0.00025547,120]
[343984519,1733169565384,-1181.82,0.00025547,120]
[343984520,1733169565429,-2609.47,0.00025547,120]
[343984521,1733169565475,-860.45,0.00025547,120]
[343984522,1733169565518,-847.91,0.00025547,120]
[343984523,1733169565562,-500.0,0.00025547,120]
[343984524,1733169565606,-500.0,0.00025547,120]
[343984525,1733169565649,-1577.07,0.00025547,120]
[343984526,1733169565693,-500.0,0.00025547,120]
[343984527,1733169565734,-500.0,0.00025547,120]
[343984528,1733169565776,-1229.5,0.00025547,120]
[343984529,1733169565819,-4325.33,0.00025547,120]
[343984530,1733169565861,-1146.75,0.00025547,120]
[343984531,1733169565907,-870.78,0.00025547,120]
[343984532,1733169565951,-4779.25,0.00025547,120]
[343984533,1733169565994,-2309.42,0.00025547,120]
[343984534,1733169566036,-500.0,0.00025547,120]
[343984535,1733169566077,-500.0,0.00025547,120]
[343984536,1733169566118,-5287.35,0.00025547,120]
[343984537,1733169566158,-6116.17,0.00025547,120]
[343984538,1733169566198,-793.22,0.00025547,120]
[343984539,1733169566239,-2762.05,0.00025547,120]
[343984540,1733169566279,-500.0,0.00025547,120]
[343984541,1733169566318,-4955.63,0.00025547,120]
[343984542,1733169566358,-1836.1,0.00025547,120]
[343984543,1733169566701,-500.0,0.00025547,120]
[343984544,1733169566745,-500.0,0.00025547,120]
[343984545,1733169566793,-1023.67,0.00025547,120]
[343984546,1733169566836,-6294.22,0.00025547,120]
[343984547,1733169566877,-500.0,0.00025547,120]
[343984548,1733169566918,-1361.04,0.00025547,120]
[343984549,1733169566959,-2550.03,0.00025547,120]
[343984550,1733169566999,-1153.56,0.00025547,120]
[343984551,1733169567041,-500.0,0.00025547,120]
[343984552,1733169567081,-500.0,0.00025547,120]
[343984553,1733169567121,-1907.13,0.00025547,120]
[343984554,1733169567160,-514.18,0.00025547,120]
[343984555,1733169567201,-500.0,0.00025547,120]
[343984556,1733169567241,-527.27735773,0.00025547,120]
[343984557,1733169567280,-3535.47,0.00025547,120]
[343984558,1733169567319,-500.0,0.00025547,120]
[343984559,1733169567361,-1417.54,0.00025547,120]
[343984560,1733169567403,-500.0,0.00025547,120]
[343984561,1733169567447,-549.1,0.00025547,120]
[343984562,1733169567491,-500.0,0.00025547,120]
[343984563,1733169567535,-4776.42,0.00025547,120]
[343984564,1733169567595,-1487.64,0.00025547,120]
[343984565,1733169567640,-500.0,0.00025547,120]
[343984566,1733169567686,-2470.15,0.00025547,120]
[343984567,1733169567728,-795.36,0.00025547,120]
[343984568,1733169567772,-890.83,0.00025547,120]
[343984569,1733169567815,-500.0,0.00025547,120]
[343984570,1733169567857,-500.0,0.00025547,120]
[343984571,1733169567902,-2939.67,0.00025547,120]
[343984572,1733169567944,-500.0,0.00025547,120]
[343984573,1733169567988,-2411.07,0.00025547,120]
[343984574,1733169568030,-5621.83,0.00025547,120]
[343984575,1733169568073,-991.41,0.00025547,120]
[343984576,1733169568117,-1874.45,0.00025547,120]
[343984577,1733169568161,-1305.92,0.00025547,120]
[343984578,1733169568206,-931.33,0.00025547,120]
[343984579,1733169568248,-1065.56,0.00025547,120]
[343984580,1733169568293,-500.0,0.00025547,120]
[343984581,1733169568338,-500.0,0.00025547,120]
[343984582,1733169568385,-2705.16,0.00025547,120]
[343984583,1733169568434,-318.47,0.00025547,120]
[343984584,1733169568480,-500.0,0.00025547,120]
[343984585,1733169568525,-500.0,0.00025547,120]
[343984586,1733169568574,-3526.57,0.00025547,120]
[343984587,1733169568620,-562.03069992,0.00025547,120]
[343984588,1733169568667,-1775.35,0.00025547,120]
[343984589,1733169568714,-200.0,0.00025668,120]
[343984590,1733169568759,-420.35115058,0.00025689,30]
[343984591,1733169568805,-358.503438,0.00025821,120]
[343984592,1733169568850,-252.726554,0.00025821,120]
[343984593,1733169568897,-4011.101255,0.00025821,120]
[343984594,1733169568940,-500.0,0.00025821,120]
[343984595,1733169568983,-500.0,0.00025821,120]
[343984596,1733169569025,-500.0,0.00025821,120]
[343984597,1733169569067,-500.0,0.00025821,120]
[343984598,1733169569110,-642.86,0.00025821,120]
[343984599,1733169569153,-500.0,0.00025821,120]
[343984600,1733169569198,-756.76,0.00025821,120]
[343984601,1733169569239,-500.0,0.00025821,120]
[343984602,1733169569280,-1594.55,0.00025821,120]
[343984603,1733169569321,-500.0,0.00025821,120]
[343984604,1733169569363,-445.73459038,0.00025821,30]
[343984605,1733169569405,-500.0,0.00025821,120]
[343984606,1733169569447,-1852.82,0.00025821,120]
[343984607,1733169569491,-500.0,0.00025821,120]
[343984608,1733169569534,-500.0,0.00025821,120]
[343984609,1733169569580,-1847.31,0.00025821,120]
[343984610,1733169569624,-500.0,0.00025821,120]
[343984611,1733169569667,-500.0,0.00025821,120]
[343984612,1733169569710,-576.91577998,0.00025821,120]
[343984613,1733169569752,-1530.34,0.00025821,120]
[343984614,1733169569794,-500.0,0.00025821,120]
[343984615,1733169569835,-624.19,0.00025821,120]
[343984616,1733169569876,-255.31139602,0.00025821,120]
[343984617,1733169569916,-500.0,0.00025821,120]
[343984618,1733169569957,-3500.48,0.00025821,120]
[343984619,1733169569999,-500.0,0.00025821,120]
[343984620,1733169570042,-852.71,0.00025821,120]
[343984621,1733169570083,-809.81,0.00025821,120]
[343984622,1733169570125,-500.0,0.00025821,120]
[343984623,1733169570167,-606.0,0.00025821,120]
[343984624,1733169570207,-500.0,0.00025821,120]
[343984625,1733169570249,-1384.64,0.00025821,120]
[343984626,1733169570290,-500.0,0.00025821,120]
[343984627,1733169570332,-500.0,0.00025821,120]
[343984628,1733169570374,-620.9,0.00025821,120]
[343984629,1733169570416,-500.0,0.00025821,120]
[343984630,1733169570458,-500.0,0.00025821,120]
[343984631,1733169570504,-1176.96,0.00025821,120]
[343984632,1733169570549,-500.0,0.00025821,120]
[343984633,1733169570594,-500.0,0.00025821,120]
[343984634,1733169570639,-500.0,0.00025821,120]
[343984635,1733169570684,-2497.51,0.00025821,120]
[343984636,1733169570728,-500.0,0.00025821,120]
[343984637,1733169570770,-500.0,0.00025821,120]
[343984638,1733169571068,-500.0,0.00025821,120]
[343984639,1733169571111,-702.37,0.00025821,120]
[343984640,1733169571153,-2647.58,0.00025821,120]
[343984641,1733169571193,-500.0,0.00025821,120]
[343984642,1733169571234,-1509.57,0.00025821,120]
[343984643,1733169571275,-500.0,0.00025821,120]
[343984644,1733169571316,-645.81,0.00025821,120]
[343984645,1733169571359,-500.0,0.00025821,120]
[343984646,1733169571403,-577.19,0.00025821,120]
[343984647,1733169571445,-500.0,0.00025821,120]
[343984648,1733169571487,-1201.64,0.00025821,120]
[343984649,1733169571530,-500.0,0.00025821,120]
[343984650,1733169571577,-500.0,0.00025821,120]
[343984651,1733169571622,-781.21,0.00025821,120]
[343984652,1733169571665,-500.0,0.00025821,120]
[343984653,1733169571706,-714.59,0.00025821,120]
[343984654,1733169571748,-500.0,0.00025821,120]
[343984655,1733169571788,-1057.51,0.00025821,120]
[343984656,1733169571828,-500.0,0.00025821,120]
[343984657,1733169571868,-1496.66,0.00025821,120]
[343984658,1733169571909,-500.0,0.00025821,120]
[343984659,1733169571951,-670.33,0.00025821,120]
[343984660,1733169571992,-500.0,0.00025821,120]
[343984661,1733169572033,-500.0,0.00025821,120]
[343984662,1733169572075,-500.0,0.00025821,120]
[343984663,1733169572118,-500.0,0.00025821,120]
[343984664,1733169572161,-259.28426018,0.00025821,120]
[343984665,1733169572203,-1136.16,0.00025821,120]
[343984666,1733169572245,-500.0,0.00025821,120]
[343984667,1733169572286,-500.0,0.00025821,120]
[343984668,1733169572329,-500.0,0.00025821,120]
[343984669,1733169572372,-1933.78,0.00025821,120]
[343984670,1733169572415,-500.0,0.00025821,120]
[343984671,1733169572458,-500.0,0.00025821,120]
[343984672,1733169572501,-1205.65,0.00025821,120]
[343984673,1733169572545,-500.0,0.00025821,120]
[343984674,1733169572594,-500.0,0.00025821,120]
[343984675,1733169572641,-1167.31,0.00025821,120]
[343984676,1733169572690,-1639.63,0.00025821,120]
[343984677,1733169572735,-1353.18,0.00025821,120]
[343984678,1733169572782,-500.0,0.00025821,120]
[343984679,1733169572828,-500.0,0.00025821,120]
[343984680,1733169572871,-500.0,0.00025821,120]
[343984681,1733169572914,-500.0,0.00025821,120]
[343984682,1733169572959,-500.0,0.00025821,120]
[343984683,1733169573003,-500.0,0.00025821,30]
[343984684,1733169573048,-500.0,0.00025821,120]
[343984685,1733169573096,-500.0,0.00025821,120]
[343984686,1733169573153,-500.0,0.00025821,120]
[343984687,1733169573202,-500.0,0.00025821,120]
[343984688,1733169573252,-1895.07,0.00025821,120]
[343984689,1733169573301,-558.98,0.00025821,120]
[343984690,1733169573348,-500.0,0.00025821,120]
[343984691,1733169573396,-500.0,0.00025821,120]
[343984692,1733169573448,-500.0,0.00025821,120]
[343984693,1733169573496,-647.5455467,0.00025821,120]
[343984694,1733169573543,-3511.18,0.00025821,120]
[343984695,1733169573591,-652.62,0.00025821,120]
[343984696,1733169573636,-500.0,0.00025821,30]
[343984697,1733169573685,-500.0,0.00025821,120]
[343984698,1733169573730,-1039.8,0.00025821,120]
[343984699,1733169573775,-500.0,0.00025821,120]
[343984700,1733169573821,-1166.82,0.00025821,120]
[343984701,1733169573868,-500.0,0.00025821,120]
[343984702,1733169573915,-212.64193364,0.00025821,120]
[343984703,1733169573961,-500.0,0.00025821,120]
[343984704,1733169574007,-400.87250727,0.00025821,120]
[343984705,1733169574053,-585.74,0.00025821,120]
[343984706,1733169574098,-500.0,0.00025821,120]
[343984707,1733169574143,-500.0,0.00025821,120]
[343984708,1733169574193,-500.0,0.00025821,120]
[343984709,1733169574241,-500.0,0.00025821,120]
[343984710,1733169574287,-519.91,0.00025821,120]
[343984711,1733169574334,-500.0,0.00025821,120]
[343984712,1733169574381,-500.0,0.00025821,120]
[343984713,1733169574426,-500.0,0.00025821,120]
[343984714,1733169574471,-750.84,0.00025821,120]
[343984715,1733169574517,-500.0,0.00025821,120]
[343984716,1733169574563,-516.45,0.00025821,120]
[343984717,1733169574610,-500.0,0.00025821,120]
[343984718,1733169574660,-1160.34,0.00025821,120]
[343984719,1733169574705,-500.0,0.00025821,120]
[343984720,1733169574751,-500.0,0.00025821,30]
[343984721,1733169574796,-1556.7,0.00025821,120]
[343984722,1733169574841,-366.14625578,0.00025821,120]
[343984723,1733169574885,-500.0,0.00025821,120]
[343984724,1733169574930,-3243.18,0.00025821,120]
[343984725,1733169574972,-500.0,0.00025821,120]
[343984726,1733169575015,-630.27,0.00025821,120]
[343984727,1733169575058,-362.33516067,0.00025821,120]
[343984728,1733169575101,-1015.59,0.00025821,120]
[343984729,1733169575149,-1761.48,0.00025821,120]
[343984730,1733169575201,-954.34,0.00025821,120]
[343984731,1733169575246,-500.0,0.00025821,120]
[343984732,1733169575290,-500.0,0.00025821,120]
[343984733,1733169575332,-237.27641015,0.00025821,120]
[343984734,1733169575725,-1076.04,0.00025821,120]
[343984735,1733169575772,-500.0,0.00025821,120]
[343984736,1733169575818,-1860.62,0.00025821,120]
[343984737,1733169575864,-2087.05,0.00025821,120]
[343984738,1733169575913,-500.0,0.00025821,120]
[343984739,1733169575960,-1700.41,0.00025821,120]
[343984740,1733169576006,-500.0,0.00025821,120]
[343984741,1733169576052,-1825.7,0.00025821,30]
[343984742,1733169576096,-500.0,0.00025821,120]
[343984743,1733169576140,-683.55,0.00025821,120]
[343984744,1733169576187,-595.74,0.00025821,120]
[343984745,1733169576229,-500.0,0.00025821,120]
[343984746,1733169576271,-2632.15,0.00025821,120]
[343984747,1733169576313,-531.21,0.00025821,120]
[343984748,1733169576355,-761.54,0.00025821,120]
[343984749,1733169576398,-1866.97,0.00025821,120]
[343984750,1733169576444,-500.0,0.00025821,120]
[343984751,1733169576489,-500.0,0.00025821,120]
[343984752,1733169576532,-3090.51,0.00025821,120]
[343984753,1733169576580,-500.0,0.00025821,120]
[343984754,1733169576626,-500.0,0.00025821,120]
[343984755,1733169576669,-500.0,0.00025821,120]
[343984756,1733169576710,-500.0,0.00025821,120]
[343984757,1733169576751,-1954.18,0.00025821,120]
[343984758,1733169576792,-1364.22,0.00025821,120]
[343984759,1733169576833,-558.83,0.00025821,120]
[343984760,1733169576875,-500.0,0.00025821,120]
[343984761,1733169576916,-1251.07,0.00025821,120]
[343984762,1733169576957,-500.0,0.00025821,120]
[343984763,1733169577002,-208.56057522,0.00025821,120]
[343984764,1733169577057,-1140.3,0.00025821,120]
[343984765,1733169577103,-500.0,0.00025821,120]
[343984766,1733169577148,-1150.41,0.00025821,120]
[343984767,1733169577202,-1074.21,0.00025821,120]
[343984768,1733169577249,-745.91,0.00025821,120]
[343984769,1733169577296,-500.0,0.00025821,120]
[343984770,1733169577342,-500.0,0.00025821,120]
[343984771,1733169577387,-1444.05,0.00025821,120]
[343984772,1733169577433,-565.51,0.00025821,120]
[343984773,1733169577479,-500.0,0.00025821,120]
[343984774,1733169577524,-500.0,0.00025821,120]
[343984775,1733169577570,-500.0,0.00025821,120]
[343984776,1733169577616,-687.16,0.00025821,120]
[343984777,1733169577665,-500.0,0.00025821,120]
[343984778,1733169577711,-461.89683754,0.00025821,120]
[343984779,1733169577758,-500.0,0.00025821,120]
[343984780,1733169577815,-500.0,0.00025821,120]
[343984781,1733169577869,-500.0,0.00025821,120]
[343984782,1733169577916,-500.0,0.00025821,120]
[343984783,1733169577960,-930.59,0.00025821,120]
[343984784,1733169578005,-337.89804826,0.00025821,120]
[343984785,1733169578055,-500.0,0.00025821,120]
[343984786,1733169578101,-2396.75,0.00025821,120]
[343984787,1733169578148,-500.0,0.00025821,120]
[343984788,1733169578196,-1097.58,0.00025821,120]
[343984789,1733169578242,-500.0,0.00025821,120]
[343984790,1733169578289,-500.0,0.00025821,120]
[343984791,1733169578334,-500.0,0.00025821,120]
[343984792,1733169578378,-500.0,0.00025821,120]
[343984793,1733169578424,-500.0,0.00025821,120]
[343984794,1733169578470,-500.0,0.00025821,120]
[343984795,1733169578516,-868.85,0.00025821,120]
[343984796,1733169578565,-500.0,0.00025821,120]
[343984797,1733169578610,-1114.97,0.00025821,120]
[343984798,1733169578656,-2000.21,0.00025821,120]
[343984799,1733169578703,-500.0,0.00025821,120]
[343984800,1733169578747,-278.53,0.00025821,120]
[343984801,1733169578792,-1071.54,0.00025821,120]
[343984802,1733169578837,-500.0,0.00025821,120]
[343984803,1733169578882,-551.34755662,0.00025821,120]
[343984804,1733169578927,-500.0,0.00025821,120]
[343984805,1733169578982,-500.0,0.00025821,120]
[343984806,1733169579028,-3096.03,0.00025821,120]
[343984807,1733169579072,-1662.47,0.00025821,120]
[343984808,1733169579116,-1377.65,0.00025821,120]
[343984809,1733169579162,-500.0,0.00025821,120]
[343984810,1733169579205,-544.78502367,0.00025821,60]
[343984811,1733169579247,-2217.05,0.00025821,120]
[343984812,1733169579291,-1306.98,0.00025821,120]
[343984813,1733169579333,-500.0,0.00025821,120]
[343984814,1733169579379,-500.0,0.00025821,120]
[343984815,1733169579423,-739.43,0.00025821,120]
[343984816,1733169579467,-500.0,0.00025821,120]
[343984817,1733169579512,-995.51,0.00025821,120]
[343984818,1733169579557,-547.62,0.00025821,120]
[343984819,1733169579602,-500.0,0.00025821,120]
[343984820,1733169579648,-1079.3,0.00025821,120]
[343984821,1733169579695,-500.0,0.00025821,120]
[343984822,1733169579742,-1744.11,0.00025821,120]
[343984823,1733169579786,-500.0,0.00025821,120]
[343984824,1733169579831,-500.0,0.00025821,120]
[343984825,1733169579881,-500.0,0.00025821,120]
[343984826,1733169579926,-611.98,0.00025821,120]
[343984827,1733169579969,-500.0,0.00025821,120]
[343984828,1733169580014,-2533.32,0.00025821,120]
[343984829,1733169580476,-1516.32,0.00025821,120]
[343984830,1733169580522,-500.0,0.00025821,120]
[343984831,1733169580569,-1653.35,0.00025821,120]
[343984832,1733169580614,-500.0,0.00025821,30]
[343984833,1733169580662,-686.05,0.00025821,120]
[343984834,1733169580706,-801.48,0.00025821,120]
[343984835,1733169580750,-500.0,0.00025821,120]
[343984836,1733169580793,-500.0,0.00025821,120]
[343984837,1733169580839,-500.0,0.00025821,120]
[343984838,1733169580883,-500.0,0.00025821,120]
[343984839,1733169580925,-538.16,0.00025821,120]
[343984840,1733169580971,-500.0,0.00025821,120]
[343984841,1733169581013,-1354.41,0.00025821,120]
[343984842,1733169581056,-500.0,0.00025821,120]
[343984843,1733169581098,-969.1,0.00025821,120]
[343984844,1733169581141,-2609.7,0.00025821,120]
[343984845,1733169581184,-500.0,0.00025821,120]
[343984846,1733169581229,-2510.83,0.00025821,120]
[343984847,1733169581272,-500.0,0.00025821,120]
[343984848,1733169581315,-500.0,0.00025821,120]
[343984849,1733169581359,-1407.19,0.00025821,120]
[343984850,1733169581403,-500.0,0.00025821,120]
[343984851,1733169581448,-500.0,0.00025821,120]
[343984852,1733169581490,-524.65,0.00025821,120]
[343984853,1733169581534,-2128.74,0.00025821,120]
[343984854,1733169581583,-624.33,0.00025821,120]
[343984855,1733169581629,-500.0,0.00025821,120]
[343984856,1733169581673,-500.0,0.00025821,120]
[343984857,1733169581717,-1988.98,0.00025821,120]
[343984858,1733169581761,-1527.24,0.00025821,120]
[343984859,1733169581805,-500.0,0.00025821,120]
[343984860,1733169581847,-500.0,0.00025821,120]
[343984861,1733169581891,-1500.0,0.00025821,120]
[343984862,1733169581934,-500.0,0.00025821,120]
[343984863,1733169581979,-500.0,0.00025821,120]
[343984864,1733169582021,-1461.95,0.00025821,120]
[343984865,1733169582064,-1591.59,0.00025821,120]
[343984866,1733169582107,-772.36,0.00025821,120]
[343984867,1733169582151,-500.0,0.00025821,90]
[343984868,1733169582196,-1905.7,0.00025821,120]
[343984869,1733169582241,-2183.1,0.00025821,120]
[343984870,1733169582284,-500.0,0.00025821,120]
[343984871,1733169582327,-679.92,0.00025821,120]
[343984872,1733169582371,-1191.99,0.00025821,120]
[343984873,1733169582414,-500.0,0.00025821,120]
[343984874,1733169582457,-531.75,0.00025821,120]
[343984875,1733169582500,-500.0,0.00025821,120]
[343984876,1733169582545,-1048.36,0.00025821,120]
[343984877,1733169582594,-546.95108663,0.00025821,120]
[343984878,1733169582639,-500.0,0.00025821,120]
[343984879,1733169582684,-716.67,0.00025821,120]
[343984880,1733169582731,-500.0,0.00025821,120]
[343984881,1733169582775,-500.0,0.00025821,120]
[343984882,1733169582817,-2582.23,0.00025821,120]
[343984883,1733169582859,-652.11,0.00025821,120]
[343984884,1733169582901,-2789.77,0.00025821,120]
[343984885,1733169582944,-500.0,0.00025821,120]